bitfinex-derivatives/quotes_ETHF0:USTF0_20250604
["timestamp","ask_amount","ask_price","bid_price","bid_amount"]
[1749000086521,5.5476,2610.6,2610.4,0.76563]
[1749000086716,0.4331,2610.7,2610.5,0.76561]
[1749000087218,0.4331,2610.7,2610.4,3.2078]
[1749000087421,0.4331,2610.7,2610.5,0.7656]
[1749000087821,0.4331,2610.7,2610.6,0.76558]
[1749000088718,0.4331,2610.7,2610.4,3.2078]
[1749000088719,0.76561,2610.5,2610.4,3.2078]
[1749000089022,0.76577,2610.0,2609.7,7.9898]
[1749000089228,0.76576,2610.1,2609.7,7.9898]
[1749000089421,0.06704602,2609.8,2609.7,8.75565]
[1749000092122,0.06704602,2609.8,2609.7,13.75565]
[1749000092319,6.02e-06,2609.8,2609.7,13.75565]
[1749000105436,6.02e-06,2609.8,2609.7,8.75565]
[1749000106841,6.02e-06,2609.8,2609.7,9.88167074]
[1749000107038,6.02e-06,2609.8,2609.7,10.02605]
[1749000107241,6.02e-06,2609.8,2609.7,11.15207074]
[1749000108538,6.02e-06,2609.8,2609.7,11.1530834]
[1749000109740,6.02e-06,2609.8,2609.7,7.9452834]
[1749000110041,6.02e-06,2609.8,2609.7,11.1530834]
[1749000111541,6.02e-06,2609.8,2609.7,9.8826834]
[1749000112443,6.02e-06,2609.8,2609.7,8.75565]
[1749000117845,6.02e-06,2609.8,2609.7,10.26345008]
[1749000122152,6.02e-06,2609.8,2609.7,28.19845008]
[1749000122552,6.02e-06,2609.8,2609.7,26.69065]
[1749000123149,6.02e-06,2609.8,2609.7,28.19754272]
[1749000130757,6.02e-06,2609.8,2609.7,10.25154272]
[1749000130956,6.02e-06,2609.8,2609.7,28.19154272]
[1749000133154,6.02e-06,2609.8,2609.7,26.68465]
[1749000133653,1.2914,2610.3,2610.2,0.7657]
[1749000133956,1.2914,2610.3,2610.2,9.87455066]
[1749000134158,1.2914,2610.3,2610.2,8.7445]
[1749000139767,1.2782,2610.8,2610.7,0.76555]
[1749000140061,1.2782,2610.8,2610.7,8.74435]
[1749000145163,1.2909,2610.9,2610.8,0.76553]
[1749000145369,1.9029,2611.3,2611.2,0.76541]
[1749000145559,1.9029,2611.3,2611.2,8.74421]
[1749000146362,0.76522,2611.9,2611.2,8.74421]
[1749000146363,0.00574405,2611.5,2611.4,0.76535]
[1749000149772,3.2078,2612.2,2611.2,8.5866]
[1749000149773,43.369,2612.7,2612.2,0.7651]
[1749000150066,1.8871,2612.3,2612.2,0.7651]
[1749000151060,6.8871,2612.3,2612.0,3.2078]
[1749000151359,0.76526,2611.7,2611.6,3.2078]
[1749000151566,6.6959,2612.2,2611.6,3.2078]
[1749000151862,1.2872,2612.1,2611.3,3.2078]
[1749000152162,1.2872,2612.1,2611.0,3.21354405]
[1749000152163,0.76533,2611.5,2611.0,3.21354405]
[1749000152364,1.2872,2611.4,2611.3,0.76536]
[1749000152671,1.9419,2611.4,2611.3,3.97316]
[1749000154568,1.9419,2611.4,2611.3,3.97318]
[1749000156367,1.9419,2611.4,2611.3,3.2078]
[1749000156873,2.70727,2611.4,2611.1,0.76543]
[1749000157066,1.2759,2611.3,2611.1,0.76543]
[1749000157269,1.2759,2611.3,2611.2,0.76541]
[1749000158770,0.6547,2611.4,2611.3,0.76538]
[1749000158974,0.6547,2611.4,2611.3,3.97318]
[1749000159572,0.6512,2611.5,2611.4,0.76535]
[1749000160263,0.645,2611.7,2611.6,0.76529]
[1749000160463,2.6266,2612.1,2612.0,0.76517]
[1749000160656,2.6266,2612.1,2612.0,3.97297]
[1749000161266,2.6266,2612.1,2612.0,0.76517]
[1749000162973,3.39174,2612.1,2612.0,0.76517]
[1749000163173,3.39174,2612.1,2611.9,0.76518]
[1749000163368,1.2325,2612.0,2611.9,0.76518]
[1749000164868,0.76523,2611.9,2611.7,3.97304]
[1749000165071,1.2325,2611.8,2611.7,3.97304]
[1749000170576,1.29954602,2611.8,2611.7,3.97304]
[1749000171079,2.06477602,2611.8,2611.7,3.97304]
[1749000171472,0.06704602,2611.8,2611.7,3.97304]
[1749000172370,1.36354602,2611.8,2611.7,3.97304]
[1749000172674,2.12878602,2611.8,2611.7,3.2078]
[1749000173680,0.76538,2611.4,2611.3,3.2078]
[1749000173873,0.76534,2611.5,2611.3,3.97316]
[1749000174068,2.06185,2611.4,2611.3,3.2078]
[1749000174273,2.69865,2611.4,2611.3,3.2078]
[1749000175074,2.69865,2611.4,2611.3,3.97318]
[1749000175275,2.69865,2611.4,2611.3,3.2078]
[1749000176083,2.69865,2611.4,2611.3,3.97318]
[1749000176977,2.69865,2611.4,2611.3,3.2078]
[1749000177883,1.9333,2611.4,2611.3,3.2078]
[1749000178088,2.69865,2611.4,2611.3,3.97318]
[1749000180478,1.9333,2611.4,2611.3,3.97318]
[1749000180884,0.7653,2611.6,2611.3,3.2078]
[1749000181186,0.7653,2611.6,2611.4,0.76533]
[1749000181384,0.7653,2611.6,2611.4,1.39073]
[1749000181586,0.76532,2611.5,2611.4,1.39073]
[1749000182183,1.37998,2611.7,2611.6,0.76529]
[1749000182985,0.6147,2611.7,2611.6,0.76529]
[1749000183189,0.6147,2611.7,2611.5,0.76531]
[1749000183491,0.76532,2611.6,2611.4,2.03474]
[1749000184090,0.76535,2611.4,2611.3,3.2078]
[1749000184884,1.43825,2611.4,2611.3,3.2078]
[1749000186680,1.43825,2611.4,2611.0,0.00574405]
[1749000186880,0.76544,2611.1,2611.0,0.00574405]
[1749000187290,0.76543,2611.2,2611.0,0.77121405]
[1749000187488,2.03453,2611.2,2611.0,0.77121405]
[1749000187684,2.03453,2611.2,2611.1,0.76544]
[1749000187685,1.2691,2611.2,2611.1,0.76544]
[1749000187890,3.27484602,2611.5,2611.0,0.00574405]
[1749000187891,0.06704602,2611.5,2611.0,0.00574405]
[1749000188086,0.06704602,2611.5,2611.4,0.76535]
[1749000188495,0.06704602,2611.5,2611.4,2.69535]
[1749000192099,0.06704602,2611.5,2611.4,1.41905]
[1749000192391,0.06704602,2611.5,2611.4,6.16705]
[1749000192698,0.06704602,2611.5,2611.4,7.47855]
[1749000194997,0.06704602,2611.5,2611.4,2.73055]
[1749000195386,0.06704602,2611.5,2611.4,7.47855]
[1749000195895,0.06704602,2611.5,2611.4,2.73055]
[1749000196091,0.06704602,2611.5,2611.4,7.47855]
[1749000199204,0.06704602,2611.5,2611.4,2.73055]
[1749000199497,0.06704602,2611.5,2611.4,1.83415]
[1749000199803,0.06704602,2611.5,2611.4,6.58215]
[1749000200197,0.06704602,2611.5,2611.4,1.83415]
[1749000200500,0.83236602,2611.5,2611.4,1.0688]
[1749000201604,0.83236602,2611.5,2611.4,1.83415]
[1749000202397,0.83236602,2611.5,2611.4,1.0688]
[1749000202703,0.83236602,2611.5,2611.4,1.83415]
[1749000203001,0.83236602,2611.5,2611.4,1.0688]
[1749000203199,0.06704602,2611.5,2611.4,1.83415]
[1749000206001,0.83236602,2611.5,2611.4,0.4151]
[1749000206301,1.44676602,2611.5,2611.4,0.4151]
[1749000206497,1.44676602,2611.5,2611.4,1.18045]
[1749000206705,1.44676602,2611.5,2611.4,0.4151]
[1749000207605,0.76544,2611.1,2611.0,0.00574405]
[1749000207908,0.76539,2611.3,2611.0,0.00574405]
[1749000208107,0.76536,2611.4,2611.3,0.76538]
[1749000209104,0.76536,2611.4,2611.2,3.2078]
[1749000209105,0.76536,2611.4,2611.2,3.97319]
[1749000210706,0.76538,2611.3,2611.2,3.97319]
[1749000211207,0.76538,2611.3,2611.2,3.2078]
[1749000213909,0.76536,2611.4,2611.2,3.97319]
[1749000214105,0.76538,2611.3,2611.2,3.97319]
[1749000214913,0.76538,2611.3,2611.2,3.2078]
[1749000216112,0.83242602,2611.3,2611.2,3.2078]
[1749000216911,0.83242602,2611.3,2611.2,3.97321]
[1749000218712,0.83242602,2611.3,2611.2,3.2078]
[1749000219214,0.06704602,2611.3,2611.2,3.97321]
[1749000219606,0.83242602,2611.3,2611.2,3.97321]
[1749000220508,0.83242602,2611.3,2611.2,0.76541]
[1749000220713,0.83242602,2611.3,2611.2,3.97321]
[1749000221415,0.83242602,2611.3,2611.2,3.2078]
[1749000222815,0.83242602,2611.3,2611.2,3.97321]
[1749000223815,0.83242602,2611.3,2611.2,3.2078]
[1749000224616,0.76544,2611.1,2611.0,0.00574405]
[1749000225117,5.76544,2611.1,2611.0,0.00574405]
[1749000225312,7.67704,2611.1,2611.0,0.00574405]
[1749000227512,2.67704,2611.1,2611.0,0.00574405]
[1749000228008,8.82527,2611.1,2610.3,7.9458]
[1749000228309,0.76563,2610.5,2610.3,8.71145]
[1749000228514,0.6288,2610.4,2610.3,8.71145]
[1749000230410,0.77134405,2610.6,2610.4,0.76562]
[1749000230611,1.40014405,2610.6,2610.4,0.76562]
[1749000231312,1.40014405,2610.6,2610.5,0.76562]
[1749000231819,1.40014405,2610.6,2610.4,0.76563]
[1749000233120,1.40014405,2610.6,2610.5,0.76562]
[1749000233917,0.76562,2610.5,2610.4,0.76564]
[1749000234216,0.63454405,2610.6,2610.5,0.76562]
[1749000235220,1.40013405,2610.6,2610.5,0.76562]
[1749000235612,0.63454405,2610.6,2610.5,0.76562]
[1749000236014,0.00574405,2610.6,2610.5,0.76562]
[1749000239522,0.00574405,2610.6,2610.5,5.76562]
[1749000239710,0.00574405,2610.6,2610.5,6.40932]
[1749000240817,0.06704602,2611.1,2611.0,0.76547]
[1749000241025,0.06704602,2611.1,2611.0,8.70227]
[1749000242224,0.06704602,2611.1,2611.0,9.91677]
[1749000248123,6.02e-06,2611.1,2611.0,9.91677]
[1749000248328,6.02e-06,2611.1,2611.0,14.91677]
[1749000248527,0.00574405,2611.3,2611.0,16.04257929]
[1749000248727,1.9144,2612.3,2611.1,6.21131929]
[1749000248728,0.6317,2612.3,2611.1,6.21131929]
[1749000249022,0.6317,2612.3,2612.2,0.76512]
[1749000249329,0.76503,2612.5,2612.2,3.97291]
[1749000249831,0.76503,2612.5,2612.3,0.6103]
[1749000250335,0.76506,2612.4,2612.3,0.6103]
[1749000251935,0.76509,2612.3,2612.2,3.2078]
[1749000253731,0.76508,2612.4,2612.2,3.2078]
[1749000253932,0.76508,2612.4,2612.2,3.97292]
[1749000254636,0.76509,2612.3,2612.2,3.2078]
[1749000257334,0.76509,2612.3,2612.2,3.97292]
[1749000257938,0.76509,2612.3,2612.2,3.2078]
[1749000258437,2.05915,2612.5,2612.3,0.76509]
[1749000258640,0.76508,2612.4,2612.2,3.97291]
[1749000259337,0.76509,2612.3,2612.2,3.97291]
[1749000259534,0.83213602,2612.3,2612.2,3.97291]
[1749000260244,0.06704602,2612.3,2612.2,3.97291]
[1749000261339,0.83213602,2612.3,2612.2,3.97291]
[1749000261741,0.83213602,2612.3,2612.2,3.2078]
[1749000263336,0.06704602,2612.3,2612.2,3.97292]
[1749000264735,0.83213602,2612.3,2612.2,3.97292]
[1749000265539,0.06704602,2612.3,2612.2,3.97292]
[1749000265739,0.83213602,2612.3,2612.2,3.97292]
[1749000265940,0.06704602,2612.3,2612.2,3.97292]
[1749000266237,0.83213602,2612.3,2612.2,3.2078]
[1749000266439,2.13163602,2612.3,2612.2,3.2078]
[1749000267241,2.13163602,2612.3,2612.2,3.97292]
[1749000267839,2.13163602,2612.3,2612.2,3.2078]
[1749000268142,2.13163602,2612.3,2612.2,3.97292]
[1749000268436,0.06704602,2612.3,2612.2,3.97292]
[1749000268744,0.06704602,2612.3,2612.2,5.24452]
[1749000269432,0.06704602,2612.3,2612.2,3.2078]
[1749000269637,0.83213602,2612.3,2612.2,3.2078]
[1749000276750,0.76512,2612.2,2612.1,0.00574405]
[1749000276941,1.40722,2612.2,2612.1,0.00574405]
[1749000277348,2.68872,2612.2,2612.1,0.00574405]
[1749000277849,3.30002,2612.2,2612.1,0.00574405]
[1749000282349,1.40722,2612.2,2612.1,0.77089405]
[1749000282555,1.40722,2612.2,2612.1,0.00574405]
[1749000282852,0.06704602,2612.3,2612.1,0.00574405]
[1749000283051,0.06704602,2612.3,2612.2,3.97292]
[1749000283246,0.06704602,2612.3,2612.2,4.59012]
[1749000285958,0.06704602,2612.3,2612.2,5.86752]
[1749000287054,0.06704602,2612.3,2612.2,10.58352]
[1749000288457,0.00574405,2612.6,2612.5,0.76503]
[1749000288657,3.2078,2613.6,2612.5,3.2078]
[1749000288658,0.76482,2613.3,2612.5,3.2078]
[1749000288955,0.76482,2613.3,2613.0,3.2078]
[1749000289355,2.11082,2613.3,2613.0,3.8262]
[1749000289658,0.76486,2613.1,2613.0,3.8262]
[1749000289954,1.346,2613.3,2613.0,3.8262]
[1749000289955,1.346,2613.2,2613.0,3.2078]
[1749000290145,6.77072405,2613.4,2613.1,0.76484]
[1749000290351,6.77072405,2613.4,2613.1,1.38324]
[1749000290851,6.77072405,2613.4,2613.1,1.38326]
[1749000291051,2.05572405,2613.4,2613.1,1.38326]
[1749000291452,0.7648,2613.3,2613.1,0.6184]
[1749000291848,0.62144405,2613.4,2613.1,0.6184]
[1749000292049,1.38622405,2613.4,2613.1,1.38325]
[1749000292252,0.00574405,2613.4,2613.1,0.6184]
[1749000292452,0.00574405,2613.4,2613.3,3.2078]
[1749000292853,0.77051405,2613.4,2613.3,3.2078]
[1749000293158,0.00574405,2613.4,2613.3,3.2078]
[1749000293653,0.00574405,2613.4,2613.3,3.9726]
[1749000296260,0.00574405,2613.4,2613.3,3.2078]
[1749000296457,0.00574405,2613.4,2613.3,3.9726]
[1749000299654,1.8968,2614.4,2613.9,0.76461]
[1749000299855,0.76455,2614.2,2614.0,3.2078]
[1749000300062,1.8968,2614.4,2614.0,3.2078]
[1749000300262,0.614,2614.5,2614.4,0.76448]
[1749000300560,1.91063,2615.2,2614.3,3.97228]
[1749000300561,1.8968,2614.9,2614.3,3.97228]
[1749000300746,1.40604405,2614.7,2614.4,0.76446]
[1749000300952,0.00574405,2614.7,2614.6,3.97222]
[1749000301552,0.00574405,2614.7,2614.6,3.2078]
[1749000301764,0.00574405,2614.7,2614.6,9.31532]
[1749000303764,7.9108,2615.7,2614.6,13.5509]
[1749000303966,1.948,2615.6,2615.1,3.2078]
[1749000304259,2.1022,2615.4,2615.1,3.97207]
[1749000304559,0.76422,2615.3,2615.1,3.2078]
[1749000304753,2.10219,2615.4,2615.1,3.97206]
[1749000304955,0.76419,2615.4,2615.1,5.20906]
[1749000305155,0.00382919,2615.5,2615.1,4.4448]
[1749000305354,0.76419,2615.4,2615.2,0.76423]
[1749000305551,0.76422,2615.3,2615.1,5.20906]
[1749000305756,0.76799919,2615.5,2615.3,0.76421]
[1749000306062,0.00382919,2615.5,2615.4,3.2078]
[1749000306556,0.76798919,2615.5,2615.4,3.2078]
[1749000306766,0.00382919,2615.5,2615.4,3.97199]
[1749000307356,0.76798919,2615.5,2615.4,3.2078]
[1749000308259,2.03868919,2615.5,2615.4,3.2078]
[1749000308461,0.76424,2615.2,2615.1,3.2078]
[1749000308861,0.76424,2615.3,2615.1,3.2078]
[1749000309568,0.76423,2615.3,2615.1,3.2078]
[1749000310065,0.76424,2615.3,2615.1,3.2078]
[1749000310267,1.27452919,2615.5,2615.1,3.2078]
[1749000310463,0.76422,2615.3,2615.1,3.97206]
[1749000310662,1.27452919,2615.5,2615.1,3.2078]
[1749000310864,0.76423,2615.3,2615.1,3.97207]
[1749000311169,1.27452919,2615.5,2615.3,0.7642]
[1749000311365,0.76419,2615.4,2615.2,0.76423]
[1749000311666,0.76421,2615.4,2615.2,0.76424]
[1749000311868,1.27452919,2615.5,2615.1,3.2078]
[1749000312066,0.7642,2615.4,2615.2,0.76422]
[1749000312362,2.03869919,2615.5,2615.3,0.76421]
[1749000312567,2.03869919,2615.5,2615.3,0.7642]
[1749000312967,0.76419,2615.4,2615.3,0.7642]
[1749000313266,0.76419,2615.4,2615.2,0.76422]
[1749000313670,0.76421,2615.4,2615.2,0.76422]
[1749000313866,0.76424,2615.3,2615.1,4.58876]
[1749000314169,0.7642,2615.4,2615.2,0.76424]
[1749000314468,0.76423,2615.3,2615.1,4.58876]
[1749000314857,1.27452919,2615.5,2615.3,0.76422]
[1749000314858,2.03869919,2615.5,2615.3,0.76422]
[1749000315071,2.03868919,2615.5,2615.1,3.8245]
[1749000315261,1.27452919,2615.5,2615.1,3.8245]
[1749000315459,1.27452919,2615.5,2615.4,0.76419]
[1749000315663,0.00382919,2615.5,2615.4,0.76419]
[1749000315865,0.76800919,2615.5,2615.3,0.7642]
[1749000316068,2.06890919,2615.5,2615.1,8.5255]
[1749000316271,3.2078,2616.8,2615.5,1.9104]
[1749000316559,2.5646,2616.7,2616.2,3.2078]
[1749000316964,0.76392,2616.3,2616.2,3.2078]
[1749000317169,1.90897,2617.5,2616.2,3.2078]
[1749000317375,0.76366,2617.3,2617.0,0.76371]
[1749000317665,5.7724,2617.7,2616.3,3.90381]
[1749000317666,1.3009,2617.4,2617.1,3.2078]
[1749000317874,3.2078,2617.3,2616.4,5.3651]
[1749000318066,3.20993,2617.4,2616.4,5.3651]
[1749000318067,0.76386,2616.6,2616.4,5.3651]
[1749000318268,3.2078,2617.0,2616.4,1.42797]
[1749000318467,3.2078,2617.0,2616.3,3.2078]
[1749000318468,0.76389,2616.4,2616.3,3.2078]
[1749000318772,0.76385,2616.6,2616.3,3.2078]
[1749000318969,2.08277,2616.5,2616.3,3.2078]
[1749000319277,0.76389,2616.4,2616.3,3.2078]
[1749000319571,0.06704602,2616.5,2616.4,0.76389]
[1749000319768,6.02e-06,2616.5,2616.4,0.76389]
[1749000320067,6.02e-06,2616.5,2616.4,7.67989]
[1749000320766,6.02e-06,2616.5,2616.4,7.37889]
[1749000321574,6.02e-06,2616.5,2616.4,7.67989]
[1749000321774,6.02e-06,2616.5,2616.4,12.37889]
[1749000322466,6.02e-06,2616.5,2616.4,7.37889]
[1749000322670,6.02e-06,2616.5,2616.4,2.67989]
[1749000322967,6.02e-06,2616.5,2616.4,7.37889]
[1749000323162,6.02e-06,2616.5,2616.4,12.37889]
[1749000323365,6.02e-06,2616.5,2616.4,30.17489]
[1749000324470,6.02e-06,2616.5,2616.4,7.67989]
[1749000324675,6.02e-06,2616.5,2616.4,2.67989]
[1749000324879,0.76389,2616.4,2616.3,3.2078]
[1749000325172,2.00109,2616.4,2616.3,3.2078]
[1749000325371,6.02e-06,2616.5,2616.3,3.2078]
[1749000325372,6.02e-06,2616.5,2616.4,0.76389]
[1749000325580,6.02e-06,2616.5,2616.4,1.42999]
[1749000325768,6.02e-06,2616.5,2616.4,2.70709]
[1749000327179,1.857,2617.4,2616.4,2.70709]
[1749000327180,0.6198,2617.4,2617.3,0.76363]
[1749000327374,0.6198,2617.4,2617.3,3.97143]
[1749000327573,0.6198,2617.4,2617.3,3.2078]
[1749000327782,1.38341,2617.4,2617.3,3.2078]
[1749000328079,0.6609,2617.6,2617.3,3.2078]
[1749000328481,1.42446,2617.6,2617.3,3.97142]
[1749000328680,1.2835,2617.5,2617.3,3.97142]
[1749000329176,1.2835,2617.5,2617.3,3.2078]
[1749000329379,0.76361,2617.4,2617.3,3.2078]
[1749000329784,1.2835,2617.5,2617.3,3.2078]
[1749000330087,0.76361,2617.4,2617.3,3.2078]
[1749000330278,9.4913,2617.5,2617.0,0.76372]
[1749000330479,1.42276,2617.3,2617.0,0.76372]
[1749000330781,0.6609,2617.6,2617.3,0.76361]
[1749000330782,1.42446,2617.6,2617.3,0.76361]
[1749000331173,1.9453,2617.6,2617.2,3.97145]
[1749000331375,0.76371,2617.1,2616.9,3.2078]
[1749000331582,0.76371,2617.1,2616.9,3.97154]
[1749000331780,7.06204,2617.6,2616.9,3.2078]
[1749000331977,0.7637,2617.1,2616.9,0.76374]
[1749000332172,0.7637,2617.1,2616.9,3.2078]
[1749000332379,0.76372,2617.0,2616.9,3.2078]
[1749000332589,2.04812,2617.0,2616.9,3.2078]
[1749000332978,1.2844,2617.0,2616.9,3.97155]
[1749000334283,0.7637,2617.1,2616.9,3.97154]
[1749000334485,0.76372,2617.0,2616.9,3.2078]
[1749000334780,2.08112,2617.0,2616.9,3.2078]
[1749000334985,1.3174,2617.0,2616.9,3.97155]
[1749000335297,0.06704602,2617.1,2617.0,0.76372]
[1749000335677,0.83075602,2617.1,2616.9,3.97153]
[1749000335878,0.06704602,2617.1,2617.0,1.39422]
[1749000336486,0.06704602,2617.1,2617.0,2.65442]
[1749000336684,0.76926629,2617.8,2617.7,0.76352]
[1749000336685,0.15416629,2617.8,2617.7,0.76352]
[1749000337085,0.15416629,2617.8,2617.6,3.2078]
[1749000337288,0.76352,2617.7,2617.6,3.2078]
[1749000337590,2.01912,2617.7,2617.6,3.2078]
[1749000337987,0.15416629,2617.8,2617.6,3.2078]
[1749000338288,0.15416629,2617.8,2617.7,0.76352]
[1749000338487,0.91766629,2617.8,2617.6,3.97134]
[1749000338689,0.81256629,2617.8,2617.7,0.76352]
[1749000338894,0.15416629,2617.8,2617.7,0.76352]
[1749000340789,0.15416629,2617.8,2617.6,3.8357]
[1749000340997,0.15416629,2617.8,2617.7,0.76352]
[1749000342803,0.91765629,2617.8,2617.6,4.59924]
[1749000343002,0.15416629,2617.8,2617.6,3.8357]
[1749000343191,0.15416629,2617.8,2617.7,0.76352]
[1749000344703,0.15416629,2617.8,2617.6,3.8357]
[1749000344892,0.15416629,2617.8,2617.7,0.76352]
[1749000345204,0.91766629,2617.8,2617.5,3.21353285]
[1749000345401,0.15416629,2617.8,2617.7,0.76352]
[1749000345597,1.36596629,2617.8,2617.7,0.76352]
[1749000345894,0.76355,2617.6,2617.5,3.21353285]
[1749000346102,1.41944,2617.7,2617.5,3.97710285]
[1749000346293,1.97535,2617.6,2617.5,3.21353285]
[1749000346491,2.60245,2617.6,2617.5,0.00573285]
[1749000346688,1.8389,2617.6,2617.5,0.76931285]
[1749000347692,1.8389,2617.6,2617.5,0.00573285]
[1749000347693,2.60245,2617.6,2617.5,0.00573285]
[1749000348595,7.60245,2617.6,2617.5,0.00573285]
[1749000349802,7.66949602,2617.6,2617.5,0.00573285]
[1749000351303,0.76369,2617.2,2617.0,0.76371]
[1749000351601,1.2215,2617.1,2617.0,0.76372]
[1749000351803,1.2215,2617.1,2616.9,3.97154]
[1749000351994,1.9852,2617.1,2616.9,3.2078]
[1749000352191,0.76372,2617.0,2616.9,3.2078]
[1749000352395,2.61642,2617.0,2616.9,3.2078]
[1749000353501,0.76378,2616.8,2616.7,0.00573285]
[1749000354094,1.8527,2617.0,2616.7,0.00573285]
[1749000354295,0.76376,2616.9,2616.7,0.76953285]
[1749000354597,0.76378,2616.8,2616.7,0.76953285]
[1749000354906,0.76378,2616.8,2616.7,0.76954285]
[1749000355103,0.76378,2616.8,2616.7,0.00573285]
[1749000356511,1.8895,2616.9,2616.7,0.00573285]
[1749000356715,0.76378,2616.8,2616.7,0.00573285]
[1749000357804,1.43207,2616.9,2616.7,0.76954285]
[1749000359210,0.76377,2616.9,2616.7,0.76952285]
[1749000360611,0.76378,2616.8,2616.7,0.00573285]
[1749000361615,0.76378,2616.8,2616.7,0.76954285]
[1749000362514,0.76378,2616.8,2616.7,0.00573285]
[1749000363212,0.76378,2616.8,2616.7,0.76954285]
[1749000363915,0.06704602,2617.6,2616.7,4.72773285]
[1749000363916,3.2078,2617.5,2616.7,4.72773285]
[1749000364113,0.06704602,2617.6,2617.3,3.2078]
[1749000364422,0.76359,2617.5,2617.4,0.6107]
[1749000364810,0.76366,2617.3,2617.2,3.19476771]
[1749000365012,0.76362,2617.4,2617.2,0.76364]
[1749000365305,0.15986182,2617.8,2617.2,3.2078]
[1749000365509,0.76356,2617.6,2617.3,0.76361]
[1749000365719,0.76356,2617.6,2617.4,0.7636]
[1749000365908,0.76356,2617.6,2617.3,0.76361]
[1749000366520,1.44206182,2617.8,2617.2,3.2078]
[1749000367019,0.76362,2617.4,2617.2,3.97146]
[1749000367518,0.7636,2617.5,2617.3,0.76362]
[1749000367718,0.76361,2617.4,2617.2,3.97145]
[1749000367909,0.76363,2617.3,2617.2,3.2078]
[1749000368316,3.35079182,2617.8,2617.2,3.2078]
[1749000368317,0.76357,2617.6,2617.2,3.2078]
[1749000368517,0.76357,2617.6,2617.4,0.76359]
[1749000369114,0.76357,2617.6,2617.2,3.2078]
[1749000369115,0.76354,2617.7,2617.2,3.2078]
[1749000369319,0.15986182,2617.8,2617.7,0.76352]
[1749000370122,0.15986182,2617.8,2617.7,1.42422]
[1749000370326,0.15986182,2617.8,2617.7,2.08212]
[1749000370825,0.15986182,2617.8,2617.7,1.3186]
[1749000371027,0.15986182,2617.8,2617.7,2.08212]
[1749000371727,0.15986182,2617.8,2617.7,3.34292]
[1749000372024,0.92335182,2617.8,2617.7,1.3186]
[1749000372220,0.15986182,2617.8,2617.7,2.08212]
[1749000372421,0.15986182,2617.8,2617.7,3.35982]
[1749000372827,2.20960379,2618.8,2617.7,3.35982]
[1749000372828,9.794,2621.5,2617.8,6.358]
[1749000373028,7.59906196,2622.7,2618.7,10.189]
[1749000373237,5.3179194,2622.2,2622.1,3.2078]
[1749000373432,0.30380107,2622.7,2622.1,43.79315265]
[1749000373733,3.2078,2623.3,2622.4,3.2078]
[1749000373937,5.688,2623.2,2622.4,3.2078]
[1749000374538,5.688,2623.2,2622.9,3.2078]
[1749000374728,0.06638574,2623.6,2622.9,3.2078]
[1749000374935,0.06638574,2623.6,2623.2,3.2078]
[1749000375129,5.915,2623.6,2622.9,3.2078]
[1749000375429,1.90337,2625.2,2623.4,3.2078]
[1749000375430,0.06636871,2623.7,2623.4,3.2078]
[1749000375634,3.2078,2624.1,2623.2,3.2078]
[1749000375635,6.237,2624.1,2623.2,3.2078]
[1749000375834,0.76175,2623.9,2623.3,0.00572017]
[1749000376039,6.237,2623.8,2623.6,3.2078]
[1749000376242,3.96954,2623.9,2623.3,3.21352017]
[1749000376442,3.2078,2623.6,2623.3,0.00572017]
[1749000376633,3.2078,2624.0,2623.5,3.2078]
[1749000376833,3.2078,2624.0,2623.3,0.00572017]
[1749000377038,0.76172,2623.9,2623.3,0.00572017]
[1749000377339,3.2078,2623.6,2623.3,0.00572017]
[1749000377539,0.76186,2623.4,2623.3,0.00572017]
[1749000377839,6.552,2623.5,2622.1,40.8]
[1749000378030,3.2078,2622.5,2621.8,3.2078]
[1749000378233,45.78516,2622.4,2621.8,3.28408346]
[1749000378442,7.31119,2622.3,2621.8,3.28408346]
[1749000378642,0.76221,2622.2,2621.8,3.28408346]
[1749000378942,3.2078,2622.1,2621.8,0.07628346]
[1749000379139,9.7568,2622.1,2621.8,0.07628346]
[1749000379331,6.549,2622.1,2621.8,3.28408346]
[1749000379534,6.549,2622.1,2621.9,0.07628055]
[1749000380131,0.76227,2622.0,2621.9,0.07628055]
[1749000380531,5.76227,2622.0,2621.9,0.07628055]
[1749000380845,8.97007,2622.0,2621.9,0.07628055]
[1749000381031,10.29507,2622.0,2621.9,0.07628055]
[1749000381543,0.0056779,2622.3,2621.9,0.07628055]
[1749000381743,0.0056779,2622.3,2622.2,3.2078]
[1749000381932,0.7678579,2622.3,2622.2,3.2078]
[1749000382140,0.76223,2622.2,2621.9,0.07628055]
[1749000382341,7.31024,2622.1,2622.0,3.2078]
[1749000382745,7.31024,2622.1,2621.9,3.2078]
[1749000382941,0.76227,2622.0,2621.9,3.2078]
[1749000383242,0.76228,2622.0,2621.7,0.00572017]
[1749000383444,1.3255,2622.0,2621.8,3.2078]
[1749000383747,2.08779,2622.0,2621.8,3.2078]
[1749000383936,0.7623,2621.9,2621.8,3.2078]
[1749000384143,2.0878,2621.9,2621.8,3.2078]
[1749000385042,10.5323,2621.9,2620.2,4.9606]
[1749000385237,3.2078,2620.9,2620.3,0.34898306]
[1749000385433,3.2078,2620.9,2620.2,4.9606]
[1749000385434,3.2078,2620.4,2620.2,1.7528]
[1749000385637,7.7998,2620.3,2619.4,3.2078]
[1749000385842,0.76293,2619.8,2619.4,3.2078]
[1749000386047,6.547,2619.8,2619.7,3.2078]
[1749000386546,0.76291,2619.8,2619.7,3.2078]
[1749000387739,2.06451,2619.8,2619.7,3.2078]
[1749000388739,1.3016,2619.8,2619.3,3.21352017]
[1749000388947,1.3016,2619.8,2619.6,3.2078]
[1749000389247,0.76294,2619.7,2619.6,3.2078]
[1749000389645,2.06453,2619.8,2619.6,3.2078]
[1749000389946,0.76293,2619.8,2619.6,3.2078]
[1749000390149,0.76294,2619.7,2619.6,3.2078]
[1749000391040,0.76297,2619.7,2619.5,3.2078]
[1749000391241,0.76297,2619.6,2619.5,3.2078]